Workbook

Sheet 清单
A2: 省道S222线梅州梅县横町奇至鹧鸪段灾毁恢复重建工程
A4: 工程量清单
B11: 最高投标限价（元）： | C11: 11838145
B13: 下浮率 （请在此输入）： | C13: 0.00 | E13: %
B15: 投标总报价（元）： | C15: =汇总!G14 -> 11838145
B24: 说明：投标人只需在下浮率空白单元格中 填入两位小数点的数值即可。
A26: 工程量清单预算表-一级子目工程量清单表
A27: 建设项目名称:省道S222线梅州梅县横町奇至鹧鸪段灾毁恢复重建工程 | D27: 合同段:
A28: 编制范围: 省道S222线梅州梅县横町奇至鹧鸪段灾毁恢复重建工程 | D28: 第 1 页 | E28: 共 7 页 | H28: 招预 3-3 表
A29: 100章 总则
A30: 清单子目编码 | B30: 清单子目名称 | C30: 单位 | D30: 数量 | E30: 单价(元) | F30: 下浮率 （%） | G30: 下浮后单价 (元) | H30: 合价(元)
A31: 101-1 | B31: 保险费 | C31: 总额 | D31: 1.000 | E31: 45575.00 | F31: =--$C$13 -> 0.00 | G31: =ROUND(E31*(100-F31),2)/100 -> 45575.00 | H31: =ROUND(G31*D31,0) -> 45575
A32: 1010201 | B32: 临时保通道路 | C32: 总额 | D32: 1.000 | E32: 48807.00 | F32: 0.00 | G32: 48807.00 | H32: 48807
A33: 11001 | B33: 施工场地建设费 | C33: 总额 | D33: 1.000 | E33: 485197.00 | F33: 0.00 | G33: 485197.00 | H33: 485197
A34: 11002 | B34: 安全生产费 | C34: 总额 | D34: 1.000 | E34: 168381.00 | G34: 168381.00 | H34: 168381
A35: 401 | B35: 基本预备费 | C35: 总额 | D35: 1.000 | E35: 398783.00 | F35: 0.00 | G35: 398783.00 | H35: 398783
B70: 100 章 小计 | D70: =SUM(H31:H69) -> 1146743
A71: 编制: | C71: 复核:
A73: 工程量清单预算表-一级子目工程量清单表
A74: 建设项目名称:省道S222线梅州梅县横町奇至鹧鸪段灾毁恢复重建工程 | D74: 合同段:
A75: 编制范围: 省道S222线梅州梅县横町奇至鹧鸪段灾毁恢复重建工程 | D75: 第 2 页 | E75: 共 7 页 | H75: 招预 3-3 表
A76: 第200章 路基工程
A77: 清单子目编码 | B77: 清单子目名称 | C77: 单位 | D77: 数量 | E77: 单价(元) | F77: 下浮率 （%） | G77: 下浮后单价 (元) | H77: 合价(元)
A78: 202-1 | B78: 清理与掘除
A79: 202-1-1 | B79: 清理现场 | C79: m2 | D79: 1219.000 | E79: 1.21 | F79: =--$C$13 -> 0.00 | G79: =ROUND(E79*(100-F79),2)/100 -> 1.21 | H79: =ROUND(G79*D79,0) -> 1475
A80: 202-1-2 | B80: 砍伐树木 | C80: 棵 | D80: 251.000 | E80: 70.48 | F80: =--$C$13 -> 0.00 | G80: =ROUND(E80*(100-F80),2)/100 -> 70.48 | H80: =ROUND(G80*D80,0) -> 17690
A81: 202-2 | B81: 挖除旧路面
A82: 202-2-1 | B82: 挖除水泥混凝土路面 | C82: m3 | D82: 168.600 | E82: 128.08 | F82: 0.00 | G82: 128.08 | H82: 21594
A83: 202-2-2 | B83: 挖除沥青混凝土路面 | C83: m3 | D83: 42.000 | E83: 88.38 | F83: 0.00 | G83: 88.38 | H83: 3712
A84: 202-2-4 | B84: 挖除各类稳定土基层 | C84: m3 | D84: 137.800 | E84: 41.87 | F84: 0.00 | G84: =ROUND(E84*(100-F84),2)/100 -> 41.87 | H84: =ROUND(G84*D84,0) -> 5770
A85: 202-3 | B85: 拆除结构物
A86: 202-3-3 | B86: 拆除砖、石及其他砌体结构 | C86: m3 | D86: 221.500 | E86: 56.28 | F86: =--$C$13 -> 0.00 | G86: 56.28 | H86: 12466
A87: 202-3-6 | B87: 拆除波形护栏 | C87: 根 | D87: 12.000 | E87: 62.83 | F87: 0.00 | G87: 62.83 | H87: 754
A88: 203-1 | B88: 路基挖方
A89: 203-1-1 | B89: 挖土方 | C89: m3 | D89: 33781.200 | E89: 8.50 | F89: 0.00 | G89: 8.50 | H89: 287140
A90: 203-1-2 | B90: 挖石方 | C90: m3 | D90: 6859.000 | E90: 11.16 | F90: 0.00 | G90: 11.16 | H90: 76546
A91: 204-1 | B91: 路基填筑
A92: 204-1-2 | B92: 利用土方 | C92: m3 | D92: 22223.000 | E92: 4.85 | F92: =--$C$13 -> 0.00 | G92: =ROUND(E92*(100-F92),2)/100 -> 4.85 | H92: =ROUND(G92*D92,0) -> 107782
A93: 204-1-3 | B93: 利用石方 | C93: m3 | D93: 5556.000 | E93: 6.76 | F93: 0.00 | G93: 6.76 | H93: 37559
A94: 204-1-5 | B94: 借土填方 | C94: m3 | D94: 12783.000 | E94: 19.97 | F94: 0.00 | G94: 19.97 | H94: 255277
A95: 204-1-7 | B95: 结构物台背回填
A96: 204-1-7-3 | B96: 回填砂砾 | C96: m3 | D96: 2500.000 | E96: 89.32 | F96: =--$C$13 -> 0.00 | G96: =ROUND(E96*(100-F96),2)/100 -> 89.32 | H96: =ROUND(G96*D96,0) -> 223300
A97: 205-1 | B97: 软土地基处理
A98: 205-1-22 | B98: 钢板桩防护（SP-IV型拉森钢板桩） | C98: kg | D98: 79905.000 | E98: 2.10 | F98: 0.00 | G98: 2.10 | H98: 167801
A99: 207-1 | B99: 边沟
A100: 207-1-5 | B100: 现浇混凝土边沟
A101: 207-1-5-4 | B101: C20现浇混凝土 | C101: m3 | D101: 281.700 | E101: 583.00 | F101: 0.00 | G101: 583.00 | H101: 164231
A102: 207-3 | B102: 截水沟
A103: 207-3-3 | B103: 混凝土预制块截水沟
A104: 207-3-3-4 | B104: C20混凝土预制块 | C104: m3 | D104: 98.000 | E104: 911.00 | F104: =--$C$13 -> 0.00 | G104: =ROUND(E104*(100-F104),2)/100 -> 911.00 | H104: =ROUND(G104*D104,0) -> 89278
A105: 207-3-4 | B105: 现浇混凝土截水沟
A106: 207-3-4-4 | B106: C20现浇混凝土 | C106: m3 | D106: 178.400 | E106: 671.28 | F106: 0.00 | G106: 671.28 | H106: 119756
A107: 207-4 | B107: 急流槽或跌水
A108: 207-4-4 | B108: 现浇混凝土急流槽
A109: 207-4-4-4 | B109: C20现浇混凝土 | C109: m3 | D109: 252.400 | E109: 633.62 | F109: 0.00 | G109: 633.62 | H109: 159926
A110: 207-4-5 | B110: 检查踏步
A111: 207-4-5-4 | B111: C20预制混凝土 | C111: m3 | D111: 17.100 | E111: 1033.80 | F111: =--$C$13 -> 0.00 | G111: =ROUND(E111*(100-F111),2)/100 -> 1033.80 | H111: =ROUND(G111*D111,0) -> 17678
A112: 207-4-6 | B112: 踏步护手
A113: 207-4-6-1 | B113: 现浇踏步护手 | C113: m | D113: 344.400 | E113: 73.76 | F113: 0.00 | G113: 73.76 | H113: 25403
A114: 208-1 | B114: 植物护坡
A115: 208-1-2 | B115: 三维植被网护坡 | C115: m2 | D115: 3567.800 | E115: 41.51 | F115: 0.00 | G115: 41.51 | H115: 148099
A116: 208-1-3 | B116: 喷播草灌护坡 | C116: m2 | D116: 3302.500 | E116: 13.69 | F116: 0.00 | G116: 13.69 | H116: 45211
A117: 208-1-7 | B117: 主动防护网 | C117: m2 | D117: 8201.300 | E117: 116.41 | F117: 0.00 | G117: 116.41 | H117: 954713
A118: 编制: | C118: 复核:
A120: 工程量清单预算表-一级子目工程量清单表
A121: 建设项目名称:省道S222线梅州梅县横町奇至鹧鸪段灾毁恢复重建工程 | D121: 合同段:
A122: 编制范围: 省道S222线梅州梅县横町奇至鹧鸪段灾毁恢复重建工程 | D122: 第 3 页 | E122: 共 7 页 | H122: 招预 3-3 表
A123: 第200章 路基工程
A124: 清单子目编码 | B124: 清单子目名称 | C124: 单位 | D124: 数量 | E124: 单价(元) | F124: 下浮率 （%） | G124: 下浮后单价 (元) | H124: 合价(元)
A125: 208-3 | B125: 浆砌片石护坡
A126: 208-3-3 | B126: 实体式浆砌片石护坡 | C126: m3 | D126: 2260.800 | E126: 360.62 | F126: =--$C$13 -> 0.00 | G126: =ROUND(E126*(100-F126),2)/100 -> 360.62 | H126: =ROUND(G126*D126,0) -> 815290
A127: 208-4 | B127: 混凝土护坡
A128: 208-4-3 | B128: C20混凝土护坡 | C128: m3 | D128: 37.500 | E128: 947.68 | F128: =--$C$13 -> 0.00 | G128: =ROUND(E128*(100-F128),2)/100 -> 947.68 | H128: =ROUND(G128*D128,0) -> 35538
A129: 208-4-4 | B129: C25混凝土护坡 | C129: m3 | D129: 37.900 | E129: 715.62 | F129: =--$C$13 -> 0.00 | G129: =ROUND(E129*(100-F129),2)/100 -> 715.62 | H129: =ROUND(G129*D129,0) -> 27122
A130: 208-5 | B130: 护面墙
A131: 208-5-2 | B131: 现浇混凝土护面
A132: 208-5-2-3 | B132: C20混凝土护面 | C132: m3 | D132: 181.800 | E132: 550.54 | F132: =--$C$13 -> 0.00 | G132: =ROUND(E132*(100-F132),2)/100 -> 550.54 | H132: =ROUND(G132*D132,0) -> 100088
A133: 209 | B133: 挡土墙
A134: 209-3 | B134: 混凝土挡土墙
A135: 209-3-1 | B135: 挡墙混凝土
A136: 209-3-1-4 | B136: C25片石混凝土基础 | C136: m3 | D136: 33.000 | E136: 541.58 | F136: 0.00 | G136: 541.58 | H136: 17872
A137: 209-3-1-6 | B137: C20混凝土护脚 | C137: m3 | D137: 43.400 | E137: 636.13 | F137: 0.00 | G137: 636.13 | H137: 27608
A138: 209-3-1-7 | B138: C25混凝土挡土墙 | C138: m3 | D138: 4703.600 | E138: 748.66 | F138: 0.00 | G138: 748.66 | H138: 3521397
A139: 213-1 | B139: 预应力锚索
A140: 213-1-1 | B140: 普通预应力钢绞线
A141: 213-1-1-2 | B141: 4孔 | C141: m | D141: 3033.000 | E141: 314.62 | F141: =--$C$13 -> 0.00 | G141: =ROUND(E141*(100-F141),2)/100 -> 314.62 | H141: =ROUND(G141*D141,0) -> 954242
A142: 213-1-4 | B142: 墩锚
A143: 213-1-4-1 | B143: C20混凝土垫层 | C143: m3 | D143: 8.200 | E143: 450.37 | F143: =--$C$13 -> 0.00 | G143: =ROUND(E143*(100-F143),2)/100 -> 450.37 | H143: =ROUND(G143*D143,0) -> 3693
A144: 213-1-4-2 | B144: C35混凝土 | C144: m3 | D144: 38.500 | E144: 978.23 | F144: 0.00 | G144: 978.23 | H144: 37662
A145: 213-3 | B145: 锚杆
A146: 213-3-1 | B146: 普通钢筋锚杆
A147: 213-3-1-1 | B147: 砂浆锚杆 | C147: m | D147: 2240.000 | E147: 173.07 | F147: 0.00 | G147: 173.07 | H147: 387677
A148: 213-4 | B148: C35框架梁混凝土 | C148: m3 | D148: 223.200 | E148: 836.11 | F148: 0.00 | G148: 836.11 | H148: 186620
A149: 213-5 | B149: 框架梁钢筋 | C149: kg | D149: 28707.200 | E149: 5.50 | F149: 0.00 | G149: 5.50 | H149: 157890
A150: 218 | B150: 其他防护
A151: 218-1 | B151: 斜孔排水 | C151: m | D151: 1400.000 | E151: 169.18 | F151: =--$C$13 -> 0.00 | G151: =ROUND(E151*(100-F151),2)/100 -> 169.18 | H151: =ROUND(G151*D151,0) -> 236852
B160: 200 章 小计 | D160: =SUM(H123:H159)+SUM(H78:H117) -> 9452712
A161: 编制: | C161: 复核:
A164: 工程量清单预算表-一级子目工程量清单表
A165: 建设项目名称:省道S222线梅州梅县横町奇至鹧鸪段灾毁恢复重建工程 | D165: 合同段:
A166: 编制范围: 省道S222线梅州梅县横町奇至鹧鸪段灾毁恢复重建工程 | D166: 第 4 页 | E166: 共 7 页 | H166: 招预 3-3 表
A167: 第300章 路面工程
A168: 清单子目编码 | B168: 清单子目名称 | C168: 单位 | D168: 数量 | E168: 单价(元) | F168: 下浮率 （%） | G168: 下浮后单价 (元) | H168: 合价(元)
A169: 302-1 | B169: 垫层
A170: 302-1-1 | B170: 碎石垫层 | C170: m3 | D170: 169.000 | E170: 117.68 | F170: =--$C$13 -> 0.00 | G170: =ROUND(E170*(100-F170),2)/100 -> 117.68 | H170: =ROUND(G170*D170,0) -> 19888
A171: 304 | B171: 水泥稳定土底基层、基层
A172: 304-1 | B172: 水泥稳定土底基层、基层
A173: 304-1-2 | B173: 4%含量水泥稳定碎石基层（厚18cm） | C173: m2 | D173: 392.222 | E173: 33.26 | F173: =--$C$13 -> 0.00 | G173: =ROUND(E173*(100-F173),2)/100 -> 33.26 | H173: =ROUND(G173*D173,0) -> 13045
A174: 304-1-3 | B174: 5%含量水泥稳定碎石基层(厚25cm) | C174: m2 | D174: 840.000 | E174: 47.12 | F174: 0.00 | G174: 47.12 | H174: 39581
A175: 308-2 | B175: 黏层
A176: 308-2-2 | B176: 改性乳化沥青粘层 | C176: m2 | D176: 700.000 | E176: 1.61 | F176: =--$C$13 -> 0.00 | G176: =ROUND(E176*(100-F176),2)/100 -> 1.61 | H176: =ROUND(G176*D176,0) -> 1127
A177: 310-2 | B177: 封层
A178: 310-2-1 | B178: 沥青表处封层 | C178: m2 | D178: 840.000 | E178: 7.27 | F178: 0.00 | G178: 7.27 | H178: 6107
A179: 311-1 | B179: 细粒式改性沥青混合料
A180: 311-1-4 | B180: 厚35mm | C180: m2 | D180: 700.000 | E180: 52.97 | F180: 0.00 | G180: 52.97 | H180: 37079
A181: 311-2 | B181: 中粒式改性沥青混合料
A182: 311-2-4 | B182: 厚40mm | C182: m2 | D182: 700.000 | E182: 56.95 | F182: =--$C$13 -> 0.00 | G182: =ROUND(E182*(100-F182),2)/100 -> 56.95 | H182: =ROUND(G182*D182,0) -> 39865
A183: 312-1 | B183: 普通水泥混凝土面板
A184: 312-1-2 | B184: 厚200mm以内面板 | C184: m2 | D184: 344.000 | E184: 93.06 | F184: 0.00 | G184: 93.06 | H184: 32013
A185: 313-1 | B185: 培土路肩 | C185: m3 | D185: 155.200 | E185: 45.34 | F185: 0.00 | G185: 45.34 | H185: 7037
A186: 316-5 | B186: 路面灌缝 | C186: m | D186: 240.000 | E186: 6.86 | F186: 0.00 | G186: 6.86 | H186: 1646
B206: 300 章 小计 | D206: =SUM(H167:H205) -> 197388
A207: 编制: | C207: 复核:
A209: 工程量清单预算表-一级子目工程量清单表
A210: 建设项目名称:省道S222线梅州梅县横町奇至鹧鸪段灾毁恢复重建工程 | D210: 合同段:
A211: 编制范围: 省道S222线梅州梅县横町奇至鹧鸪段灾毁恢复重建工程 | D211: 第 5 页 | E211: 共 7 页 | H211: 招预 3-3 表
A212: 第400章 桥梁、涵洞工程
A213: 清单子目编码 | B213: 清单子目名称 | C213: 单位 | D213: 数量 | E213: 单价(元) | F213: 下浮率 （%） | G213: 下浮后单价 (元) | H213: 合价(元)
A214: 422-2 | B214: 涵洞基础垫层
A215: 422-2-1 | B215: 砂砾垫层 | C215: m3 | D215: 175.000 | E215: 89.32 | F215: =--$C$13 -> 0.00 | G215: =ROUND(E215*(100-F215),2)/100 -> 89.32 | H215: =ROUND(G215*D215,0) -> 15631
A216: 422-3 | B216: 涵管、涵身混凝土基础
A217: 422-3-4 | B217: C30混凝土 | C217: m3 | D217: 348.000 | E217: 631.91 | F217: =--$C$13 -> 0.00 | G217: =ROUND(E217*(100-F217),2)/100 -> 631.91 | H217: =ROUND(G217*D217,0) -> 219905
A218: 422-5 | B218: 基础钢筋 | C218: kg | D218: 18550.000 | E218: 4.69 | F218: 0.00 | G218: 4.69 | H218: 87000
A219: 422-10 | B219: 盖板涵涵身
A220: 422-10-1 | B220: 混凝土涵身
A221: 422-10-1-5 | B221: C30混凝土 | C221: m3 | D221: 311.500 | E221: 867.88 | F221: =--$C$13 -> 0.00 | G221: =ROUND(E221*(100-F221),2)/100 -> 867.88 | H221: =ROUND(G221*D221,0) -> 270345
A222: 422-11 | B222: 盖板涵盖板
A223: 422-11-1 | B223: 现浇混凝土盖板
A224: 422-11-1-6 | B224: C35现浇混凝土 | C224: m3 | D224: 168.900 | E224: 756.00 | F224: =--$C$13 -> 0.00 | G224: =ROUND(E224*(100-F224),2)/100 -> 756.00 | H224: =ROUND(G224*D224,0) -> 127688
A225: 422-11-3 | B225: 盖板钢筋 | C225: kg | D225: 35992.500 | E225: 4.64 | F225: 0.00 | G225: 4.64 | H225: 167005
A226: 422-13 | B226: 台帽、帽石、护栏基座
A227: 422-13-1 | B227: 台帽、帽石、护栏基座混凝土
A228: 422-13-1-2 | B228: C20混凝土 | C228: m3 | D228: 0.900 | E228: 1071.11 | F228: =--$C$13 -> 0.00 | G228: =ROUND(E228*(100-F228),2)/100 -> 1071.11 | H228: =ROUND(G228*D228,0) -> 964
A229: 422-14 | B229: 砂浆抹面 | C229: m2 | D229: 100.500 | E229: 11.54 | F229: 0.00 | G229: 11.54 | H229: 1160
B251: 400 章 小计 | D251: =SUM(H212:H250) -> 889698
A252: 编制: | C252: 复核:
A254: 工程量清单预算表-一级子目工程量清单表
A255: 建设项目名称:省道S222线梅州梅县横町奇至鹧鸪段灾毁恢复重建工程 | D255: 合同段:
A256: 编制范围: 省道S222线梅州梅县横町奇至鹧鸪段灾毁恢复重建工程 | D256: 第 6 页 | E256: 共 7 页 | H256: 招预 3-3 表
A257: 第600章 交通安全设施
A258: 清单子目编码 | B258: 清单子目名称 | C258: 单位 | D258: 数量 | E258: 单价(元) | F258: 下浮率 （%） | G258: 下浮后单价 (元) | H258: 合价(元)
A259: 602-2 | B259: 单面波形梁钢护栏
A260: 602-2-1 | B260: Gr-A-4C | C260: m | D260: 48.000 | E260: 198.23 | F260: =--$C$13 -> 0.00 | G260: =ROUND(E260*(100-F260),2)/100 -> 198.23 | H260: =ROUND(G260*D260,0) -> 9515
A261: 602-2-2 | B261: Gr-A-4E | C261: m | D261: 200.000 | E261: 184.55 | F261: 0.00 | G261: 184.55 | H261: 36910
A262: 602-2-3 | B262: Gr-C-4E | C262: m | D262: 50.000 | E262: 112.80 | F262: 0.00 | G262: 112.80 | H262: 5640
A263: 605-1 | B263: 热熔型涂料路面标线
A264: 605-1-2 | B264: 反光型 | C264: m2 | D264: 45.000 | E264: 49.67 | F264: 0.00 | G264: 49.67 | H264: 2235
A265: 605-8 | B265: 轮廓标
A266: 605-8-2 | B266: 附着式轮廓标 | C266: 个 | D266: 21.000 | E266: 4.95 | F266: =--$C$13 -> 0.00 | G266: =ROUND(E266*(100-F266),2)/100 -> 4.95 | H266: =ROUND(G266*D266,0) -> 104
B296: 600 章 小计 | D296: =SUM(H257:H295) -> 54404
A297: 编制: | C297: 复核:
A299: 工程量清单预算表-一级子目工程量清单表
A300: 建设项目名称:省道S222线梅州梅县横町奇至鹧鸪段灾毁恢复重建工程 | D300: 合同段:
A301: 编制范围: 省道S222线梅州梅县横町奇至鹧鸪段灾毁恢复重建工程 | D301: 第 7 页 | E301: 共 7 页 | H301: 招预 3-3 表
A302: 第700章 绿化及环境保护设施
A303: 清单子目编码 | B303: 清单子目名称 | C303: 单位 | D303: 数量 | E303: 单价(元) | F303: 下浮率 （%） | G303: 下浮后单价 (元) | H303: 合价(元)
A304: 703-2 | B304: 喷播植草 | C304: m2 | D304: 7500.000 | E304: 12.96 | F304: =--$C$13 -> 0.00 | G304: =ROUND(E304*(100-F304),2)/100 -> 12.96 | H304: =ROUND(G304*D304,0) -> 97200
B341: 700 章 小计 | D341: =SUM(H302:H340) -> 97200
A342: 编制: | C342: 复核:

Sheet 汇总
A1: 工程量清单预算表-总表
A2: 建设项目名称: 省道S222线梅州梅县横町奇至鹧鸪段灾毁恢复重建工程 | D2: 合同段:
D3: 第 1 页 | E3: 共 1 页 | G3: 招预 3-2 表
A4: 序号 | B4: 清单子目编码 | C4: 清单子目名称 | G4: 金额(元)
A5: 1 | B5: 100 | C5: 总则 | G5: =清单!D70 -> 1146743
A6: 2 | B6: 200 | C6: 路基工程 | G6: =清单!D160 -> 9452712
A7: 3 | B7: 300 | C7: 路面工程 | G7: =清单!D206 -> 197388
A8: 4 | B8: 400 | C8: 桥梁、涵洞工程 | G8: =清单!D251 -> 889698
A9: 5 | B9: 500 | C9: 隧道工程
A10: 6 | B10: 600 | C10: 交通安全设施 | G10: =清单!D296 -> 54404
A11: 7 | B11: 700 | C11: 绿化及环境保护工程 | G11: =清单!D341 -> 97200
A12: 8 | B12: 800 | C12: 管理、养护设施
A13: 9 | B13: 900 | C13: 管理、养护及服务房屋
B14: 第100章至900章清单合计 | G14: =SUM(G5:G13) -> 11838145
A15: 编制: | D15: 复核:
